fUSD/lending_fUSD_20240227
["ID","MTS","AMOUNT","RATE_DAILY","PERIOD"]
[315409368,1709016632683,-180.78170786,0.00022129,3]
[315409369,1709016632692,-241.38703737,0.00022129,3]
[315409370,1709016632702,-394.82441768,0.00022133,3]
[315409371,1709016632711,-1000.0,0.00022133,3]
[315409373,1709016632721,-1000.0,0.00022133,3]
[315409376,1709016632731,-182.00348632,0.00022143,3]
[315409378,1709016632740,-153.35,0.00022149,2]
[315409380,1709016632750,-153.35,0.00022264,2]
[315409382,1709016632759,-200.0,0.0002232,2]
[315409384,1709016632768,-800.0,0.0002232,2]
[315409386,1709016632778,-200.0,0.0002232,2]
[315409388,1709016632787,-153.35,0.00022379,2]
[315409390,1709016632798,-2000.0,0.000224,2]
[315409392,1709016632807,-158.93,0.00022426,2]
[315409394,1709016632817,-153.35,0.00022495,2]
[315409396,1709016632827,-5910.98080536,0.000225,2]
[315409401,1709016632845,-9108.20345986,0.000225,2]
[315409404,1709016632855,-2000.0,0.000226,2]
[315409406,1709016632864,-153.35,0.0002261,2]
[315409408,1709016632873,-31701.0826,0.00022639,2]
[315409410,1709016632882,-153.35,0.00022725,2]
[315409412,1709016632891,-450.0,0.00022739,2]
[315409414,1709016632900,-500.0,0.00022739,2]
[315409416,1709016632909,-500.0,0.00022739,2]
[315409418,1709016632919,-500.0,0.00022739,2]
[315409420,1709016632928,-500.0,0.00022739,2]
[315409422,1709016632937,-500.0,0.00022739,2]
[315409424,1709016632946,-500.0,0.00022739,2]
[315409425,1709016632955,-216.73565069,0.00022739,2]
[315409428,1709016632964,-500.0,0.00022739,2]
[315409430,1709016632974,-500.0,0.00022739,2]
[315409432,1709016632983,-500.0,0.00022739,2]
[315409434,1709016632992,-500.0,0.00022739,2]
[315409436,1709016633002,-500.0,0.00022739,2]
[315409438,1709016633013,-500.0,0.00022739,2]
[315409440,1709016633023,-411.11563709,0.00022739,2]
[315409442,1709016633039,-160.12,0.0002274,2]
[315409444,1709016633049,-150.39,0.0002274,2]
[315409446,1709016633060,-150.0,0.00022796,2]
[315409448,1709016633071,-150.0,0.00022796,2]
[315409449,1709016633080,-167.0,0.000228,2]
[315409450,1709016633090,-4350.9945715,0.000228,2]
[315409451,1709016633099,-213.41024933,0.000228,2]
[315409452,1709016633108,-703.0,0.00022807,2]
[315409453,1709016633118,-800.0,0.00022815,2]
[315409454,1709016633127,-153.35,0.00022841,2]
[315409455,1709016633137,-1995.97347967,0.00022898,2]
[315409456,1709016633146,-2900.1797,0.00022899,2]
[315409457,1709016633155,-500.0,0.00022899,2]
[315409458,1709016633164,-482.5,0.00022899,2]
[315409459,1709016633175,-155.13528761,0.000229,2]
[315409460,1709016633193,-306785.73247621,0.000229,4]
[315409461,1709016633394,-814092.24131222,0.000229,4]
[315409462,1709016633888,-401180.73601123,0.000229,4]
[315409463,1709016633898,-387.27114908,0.000229,6]
[315409464,1709016633908,-765.2985918,0.000229,2]
[315409465,1709016633917,-5000.0,0.00022919,2]
[315409466,1709016633927,-153.35,0.00022956,2]
[315409467,1709016633936,-4350.99457148,0.00022957,2]
[315409468,1709016633946,-155.52830347,0.00022998,2]
[315409469,1709016633955,-500.0,0.00022999,2]
[315409470,1709016633964,-500.0,0.00022999,2]
[315409471,1709016633973,-500.0,0.00022999,2]
[315409472,1709016633982,-500.0,0.00022999,2]
[315409473,1709016633991,-261.13,0.00022999,2]
[315409474,1709016634001,-500.0,0.00022999,2]
[315409475,1709016634010,-500.0,0.00022999,2]
[315409476,1709016634022,-205.51162466,0.00022999,2]
[315409477,1709016634031,-500.0,0.00022999,2]
[315409478,1709016634040,-500.0,0.00022999,2]
[315409479,1709016634050,-500.0,0.00022999,2]
[315409480,1709016634059,-500.0,0.00022999,2]
[315409481,1709016634069,-500.0,0.00022999,2]
[315409482,1709016634078,-500.0,0.00022999,2]
[315409483,1709016634088,-512.41638249,0.00022999,2]
[315409484,1709016634097,-500.0,0.00022999,2]
[315409485,1709016634106,-500.0,0.00022999,2]
[315409486,1709016634116,-500.0,0.00022999,2]
[315409487,1709016634126,-500.0,0.00022999,2]
[315409488,1709016634135,-500.0,0.00022999,2]
[315409489,1709016634144,-500.0,0.00022999,2]
[315409490,1709016634153,-500.0,0.00022999,2]
[315409491,1709016634162,-500.0,0.00022999,2]
[315409492,1709016634171,-500.0,0.00022999,2]
[315409493,1709016634181,-525.04480615,0.00022999,2]
[315409494,1709016634191,-500.0,0.00022999,2]
[315409495,1709016634200,-500.0,0.00022999,2]
[315409496,1709016634210,-500.0,0.00022999,2]
[315409497,1709016634220,-500.0,0.00022999,2]
[315409498,1709016634229,-328.07,0.00022999,2]
[315409499,1709016634238,-500.0,0.00022999,2]
[315409500,1709016634249,-500.0,0.00022999,2]
[315409501,1709016634258,-319.42,0.00022999,2]
[315409502,1709016634268,-500.0,0.00022999,2]
[315409503,1709016634277,-500.0,0.00022999,2]
[315409504,1709016634287,-500.0,0.00022999,2]
[315409505,1709016634297,-500.0,0.00022999,2]
[315409506,1709016634306,-500.0,0.00022999,2]
[315409507,1709016634315,-172.38,0.00022999,2]
[315409508,1709016634324,-500.0,0.00022999,2]
[315409509,1709016634334,-500.0,0.00022999,2]
[315409510,1709016634344,-500.0,0.00022999,2]
[315409511,1709016634353,-500.0,0.00022999,2]
[315409512,1709016634362,-500.0,0.00022999,2]
[315409513,1709016634372,-500.0,0.00022999,2]
[315409514,1709016634381,-500.0,0.00022999,2]
[315409515,1709016634390,-500.0,0.00022999,2]
[315409516,1709016634400,-500.0,0.00022999,2]
[315409517,1709016634409,-500.0,0.00022999,2]
[315409518,1709016634418,-500.0,0.00022999,2]
[315409519,1709016634427,-500.0,0.00022999,2]
[315409520,1709016634437,-199.79,0.00022999,2]
[315409521,1709016634446,-306.06729696,0.00022999,2]
[315409522,1709016634455,-500.0,0.00022999,2]
[315409523,1709016634465,-500.0,0.00022999,2]
[315409524,1709016634474,-500.0,0.00022999,2]
[315409525,1709016634483,-500.0,0.00022999,2]
[315409526,1709016634492,-449.67609129,0.00022999,2]
[315409527,1709016634502,-507.22844792,0.00022999,2]
[315409528,1709016634511,-500.0,0.00022999,2]
[315409529,1709016634520,-500.0,0.00022999,2]
[315409530,1709016634529,-529.83151773,0.00022999,2]
[315409531,1709016634539,-500.0,0.00022999,2]
[315409532,1709016634548,-500.0,0.00022999,2]
[315409533,1709016634557,-500.0,0.00022999,2]
[315409534,1709016634567,-500.0,0.00022999,2]
[315409535,1709016634576,-500.0,0.00022999,2]
[315409536,1709016634585,-500.0,0.00022999,2]
[315409537,1709016634594,-500.0,0.00022999,2]
[315409538,1709016634603,-500.0,0.00022999,2]
[315409539,1709016634612,-207.89733034,0.00022999,2]
[315409540,1709016634621,-369.51094723,0.00022999,2]
[315409541,1709016634630,-500.0,0.00022999,2]
[315409542,1709016634639,-500.0,0.00022999,2]
[315409543,1709016634649,-500.0,0.00022999,2]
[315409544,1709016634658,-211.37956024,0.00022999,2]
[315409545,1709016634667,-500.0,0.00022999,2]
[315409546,1709016634677,-500.0,0.00022999,2]
[315409547,1709016634686,-500.0,0.00022999,2]
[315409548,1709016634695,-500.0,0.00022999,2]
[315409549,1709016634704,-500.0,0.00022999,2]
[315409550,1709016634713,-500.0,0.00022999,2]
[315409551,1709016634722,-500.0,0.00022999,2]
[315409552,1709016634731,-500.0,0.00022999,2]
[315409553,1709016634740,-500.0,0.00022999,2]
[315409554,1709016634750,-402.44,0.00022999,2]
[315409555,1709016634759,-516.31444313,0.00022999,2]
[315409556,1709016634768,-500.0,0.00022999,2]
[315409557,1709016634777,-535.0944769,0.00022999,2]
[315409558,1709016634786,-500.0,0.00022999,2]
[315409559,1709016634795,-500.0,0.00022999,2]
[315409560,1709016634805,-500.0,0.00022999,2]
[315409561,1709016634814,-627.42,0.00022999,2]
[315409562,1709016634824,-500.0,0.00022999,2]
[315409563,1709016634833,-378.73158966,0.00022999,2]
[315409564,1709016634842,-500.0,0.00022999,2]
[315409565,1709016634852,-515.65847966,0.00022999,2]
[315409566,1709016634861,-174.23651277,0.00022999,2]
[315409567,1709016634871,-500.0,0.00022999,2]
[315409568,1709016634880,-500.0,0.00022999,2]
[315409569,1709016634889,-533.83889433,0.00022999,2]
[315409570,1709016634898,-509.52152264,0.00022999,2]
[315409571,1709016634907,-500.0,0.00022999,2]
[315409572,1709016634916,-500.0,0.00022999,2]
[315409573,1709016634925,-500.0,0.00022999,2]
[315409574,1709016634934,-500.0,0.00022999,2]
[315409575,1709016634944,-500.0,0.00022999,2]
[315409576,1709016634953,-500.0,0.00022999,2]
[315409577,1709016634962,-500.0,0.00022999,2]
[315409578,1709016634971,-500.0,0.00022999,2]
[315409579,1709016634980,-500.0,0.00022999,2]
[315409580,1709016634989,-500.0,0.00022999,2]
[315409581,1709016634998,-500.0,0.00022999,2]
[315409582,1709016635008,-500.0,0.00022999,2]
[315409583,1709016635019,-500.0,0.00022999,2]
[315409584,1709016635028,-500.0,0.00022999,2]
[315409585,1709016635037,-500.0,0.00022999,2]
[315409586,1709016635047,-607857.46171504,0.00023,2]
[315409587,1709016635056,-1209.81995107,0.00023,2]
[315409588,1709016635066,-3000.0,0.00023,2]
[315409589,1709016635075,-1561.01217776,0.00023,2]
[315409590,1709016635084,-3000.0,0.00023,2]
[315409591,1709016635094,-3000.0,0.00023,2]
[315409592,1709016635104,-3000.0,0.00023,2]
[315409593,1709016635114,-3000.0,0.00023,2]
[315409594,1709016635123,-3000.0,0.00023,2]
[315409595,1709016635132,-189.87,0.00023,2]
[315409596,1709016635141,-365.39164177,0.00023,2]
[315409597,1709016635151,-997.0,0.00023,6]
[315409598,1709016635161,-1055.0,0.00023,6]
[315409599,1709016635170,-33664.76594203,0.00023,2]
[315409600,1709016635180,-896.88675916,0.00023,3]
[315409601,1709016635189,-4518.77970945,0.00023,2]
[315409602,1709016635199,-1000.0,0.00023,2]
[315409603,1709016635208,-1000.0,0.00023,2]
[315409604,1709016635218,-1932.752,0.00023,2]
[315409605,1709016635228,-711.82921556,0.00023,2]
[315409606,1709016635237,-249845.46728274,0.00023,2]
[315409607,1709016635247,-3165.94491939,0.00023,3]
[315409608,1709016635256,-197282.7485,0.00023,2]
[315409609,1709016635265,-187.056959,0.00023,3]
[315409610,1709016635274,-200000.0,0.00023,2]
[315409611,1709016635284,-1435.71805638,0.00023,2]
[315409612,1709016635293,-707.87,0.00023,2]
[315409613,1709016635302,-707.869999,0.00023,2]
[315409614,1709016635312,-150.0,0.00023,2]
[315409615,1709016635322,-500.0,0.00023,2]
[315409616,1709016635332,-1500.0,0.00023,2]
[315409617,1709016635341,-20000.0,0.00023,2]
[315409618,1709016635350,-249.62384749,0.00023,2]
[315409619,1709016635359,-249.62384749,0.00023,2]
[315409620,1709016635368,-249.62384749,0.00023,2]
[315409621,1709016635378,-249.62384749,0.00023,2]
[315409622,1709016635387,-249.62384749,0.00023,2]
[315409623,1709016635396,-249.62384749,0.00023,2]
[315409624,1709016635405,-249.62384749,0.00023,2]
[315409625,1709016635415,-249.62384749,0.00023,2]
[315409626,1709016635424,-249.62384749,0.00023,2]
[315409627,1709016635433,-249.62384749,0.00023,2]
[315409628,1709016635443,-249.62384749,0.00023,2]
[315409629,1709016635452,-249.62384749,0.00023,2]
[315409630,1709016635461,-249.62384749,0.00023,2]
[315409631,1709016635470,-249.62384749,0.00023,2]
[315409632,1709016635479,-249.62384749,0.00023,2]
[315409633,1709016635488,-249.62384749,0.00023,2]
[315409634,1709016635498,-249.62384749,0.00023,2]
[315409635,1709016635507,-249.62384749,0.00023,2]
[315409636,1709016635517,-249.62384749,0.00023,2]
[315409637,1709016635526,-249.62384749,0.00023,2]
[315409638,1709016635535,-249.62384749,0.00023,2]
[315409639,1709016635544,-249.62384749,0.00023,2]
[315409640,1709016635554,-249.62384749,0.00023,2]
[315409641,1709016635563,-249.62384749,0.00023,2]
[315409642,1709016635574,-249.62384749,0.00023,2]
[315409643,1709016635584,-249.62384749,0.00023,2]
[315409644,1709016635593,-249.62384749,0.00023,2]
[315409645,1709016635603,-249.62384749,0.00023,2]
[315409646,1709016635613,-249.62384749,0.00023,2]
[315409647,1709016635622,-249.62384749,0.00023,2]
[315409648,1709016635632,-249.62384749,0.00023,2]
[315409649,1709016635641,-249.62384749,0.00023,2]
[315409650,1709016635651,-249.62384749,0.00023,2]
[315409651,1709016635661,-249.62384749,0.00023,2]
[315409652,1709016635671,-249.62384749,0.00023,2]
[315409653,1709016635681,-249.62384749,0.00023,2]
[315409654,1709016635691,-249.62384749,0.00023,2]
[315409655,1709016635701,-249.62384749,0.00023,2]
[315409656,1709016635710,-249.62384749,0.00023,2]
[315409657,1709016635720,-249.62384749,0.00023,2]
[315409658,1709016635729,-249.62384749,0.00023,2]
[315409659,1709016635740,-249.62384749,0.00023,2]
[315409660,1709016635750,-249.62384749,0.00023,2]
[315409661,1709016635760,-249.62384749,0.00023,2]
[315409662,1709016635769,-249.62384749,0.00023,2]
[315409663,1709016635779,-249.62384749,0.00023,2]
[315409664,1709016635788,-249.62384749,0.00023,2]
[315409665,1709016635798,-249.62384749,0.00023,2]
[315409666,1709016635808,-249.62384749,0.00023,2]
[315409667,1709016635818,-249.62384749,0.00023,2]
[315409668,1709016635827,-249.62384749,0.00023,2]
[315409669,1709016635837,-249.62384749,0.00023,2]
[315409670,1709016635846,-249.62384749,0.00023,2]
[315409671,1709016635856,-249.62384749,0.00023,2]
[315409672,1709016635865,-249.62384749,0.00023,2]
[315409673,1709016635874,-249.62384749,0.00023,2]
[315409674,1709016635884,-249.62384749,0.00023,2]
[315409675,1709016635893,-249.62384749,0.00023,2]
[315409676,1709016635902,-249.62384749,0.00023,2]
[315409677,1709016635911,-249.62384749,0.00023,2]
[315409678,1709016635920,-249.62384749,0.00023,2]
[315409679,1709016635929,-249.62384749,0.00023,2]
[315409680,1709016635938,-249.62384749,0.00023,2]
[315409681,1709016635947,-249.62384749,0.00023,2]
[315409682,1709016635956,-249.62384749,0.00023,2]
[315409683,1709016635965,-249.62384749,0.00023,2]
[315409684,1709016635974,-249.62384749,0.00023,2]
[315409685,1709016635983,-249.62384749,0.00023,2]
[315409686,1709016635994,-249.62384749,0.00023,2]
[315409687,1709016636005,-249.62384749,0.00023,2]
[315409688,1709016636016,-249.62384749,0.00023,2]
[315409689,1709016636025,-249.62384749,0.00023,2]
[315409690,1709016636035,-249.62384749,0.00023,2]
[315409691,1709016636044,-249.62384749,0.00023,2]
[315409692,1709016636054,-249.62384749,0.00023,2]
[315409693,1709016636064,-249.62384749,0.00023,2]
[315409694,1709016636075,-249.62384749,0.00023,2]
[315409695,1709016636085,-249.62384749,0.00023,2]
[315409696,1709016636095,-249.62384749,0.00023,2]
[315409697,1709016636105,-249.62384749,0.00023,2]
[315409698,1709016636114,-249.62384749,0.00023,2]
[315409699,1709016636124,-249.62384749,0.00023,2]
[315409700,1709016636133,-249.62384749,0.00023,2]
[315409701,1709016636143,-249.62384749,0.00023,2]
[315409702,1709016636152,-160.65,0.00023014,2]
[315409703,1709016636162,-50000.0,0.00023015,2]
[315409704,1709016636171,-500.0,0.00023016,2]
[315409705,1709016636182,-500.0,0.00023016,2]
[315409706,1709016636191,-575.85769653,0.00023016,2]
[315409707,1709016636200,-23790.93976201,0.00023018,2]
[315409708,1709016636209,-2078.05905983,0.00023018,2]
[315409709,1709016636218,-41078.26658478,0.00023018,2]
[315409710,1709016636227,-34443.67449088,0.00023019,2]
[315409711,1709016636236,-16672.38452262,0.00023019,2]
[315409712,1709016636246,-36380.17183081,0.00023019,2]
[315409713,1709016636283,-249.62384749,0.00023,2]
[315409714,1709016636293,-13619.82816919,0.00023019,2]
[315409715,1709016636303,-500.0,0.00023026,2]
[315409716,1709016636312,-152.0,0.00023034,5]
[315409717,1709016636322,-500.0,0.00023058,2]
[315409718,1709016636331,-479.08,0.00023072,2]
[315409719,1709016636340,-153.35,0.00023072,2]
[315409720,1709016636349,-500.0,0.0002309,2]
[315409721,1709016636359,-620.79,0.000231,2]
[315409722,1709016636367,-4350.99457148,0.00023114,2]
[315409723,1709016636376,-500.0,0.00023122,2]
[315409724,1709016636386,-387.27114907,0.0002315,7]
[315409725,1709016636395,-500.0,0.00023154,2]
[315409726,1709016636404,-151.97,0.0002317,2]
[315409727,1709016636413,-166.13,0.0002317,2]
[315409728,1709016636422,-500.0,0.00023186,2]
[315409729,1709016636431,-479.08,0.00023187,2]
[315409730,1709016636441,-153.35,0.00023187,2]
[315409731,1709016636450,-348.0,0.000232,2]
[315409732,1709016636460,-439.0,0.000232,2]
[315409733,1709016636469,-1000.0,0.000232,2]
[315409734,1709016636479,-500.0,0.00023218,2]
[315409735,1709016636488,-500.0,0.00023249,2]
[315409736,1709016636496,-4350.99457148,0.00023271,2]
[315409737,1709016636505,-500.0,0.00023281,2]
[315409738,1709016636515,-479.08,0.00023302,2]
[315409739,1709016636524,-153.35,0.00023302,2]
[315409740,1709016636533,-500.0,0.00023313,2]
[315409741,1709016636542,-163.9,0.00023342,2]
[315409742,1709016636552,-500.0,0.00023345,2]
[315409743,1709016636561,-500.0,0.00023377,2]
[315409744,1709016636570,-387.27114907,0.000234,7]
[315409745,1709016636579,-500.0,0.00023409,2]
[315409746,1709016636589,-479.08,0.00023418,2]
[315409747,1709016636598,-153.35,0.00023418,2]
[315409748,1709016636608,-4350.99457148,0.00023429,2]
[315409749,1709016636617,-500.0,0.00023441,2]
[315409750,1709016636627,-6700.0,0.00023463,7]
[315409751,1709016636636,-500.0,0.00023472,2]
[315409752,1709016636646,-151.97,0.00023483,2]
[315409753,1709016636655,-166.13,0.00023483,2]
[315409754,1709016636664,-1000.0,0.00023499,2]
[315409755,1709016636673,-1025.29146903,0.000235,2]
[315409756,1709016636682,-1500.0,0.000235,2]
[315409757,1709016636692,-500.0,0.00023504,2]
[315409758,1709016636701,-479.08,0.00023533,2]
[315409759,1709016636711,-153.35,0.00023533,2]
[315409760,1709016636720,-500.0,0.00023536,2]
[315409761,1709016636730,-500.0,0.00023568,2]
[315409762,1709016636739,-4350.99457148,0.00023586,2]
[315409763,1709016636748,-500.0,0.000236,2]
[315409764,1709016636758,-501.64978896,0.000236,2]
[315409765,1709016636767,-51785.42284158,0.000236,3]
[315409766,1709016636776,-162.75295224,0.000236,2]
[315409767,1709016636787,-424.3,0.00023618,2]
[315409768,1709016636796,-500.0,0.00023632,2]
[315409769,1709016636806,-479.08,0.00023648,2]
[315409770,1709016636815,-153.35,0.00023648,2]
[315409771,1709016636825,-387.27114907,0.0002365,7]
[315409772,1709016636835,-164.95,0.00023662,2]
[315409773,1709016636844,-500.0,0.00023664,2]
[315409774,1709016636854,-500.0,0.00023695,2]
[315409775,1709016636863,-500.0,0.00023699,2]
[315409776,1709016636873,-3006.8894584,0.000237,2]
[315409777,1709016636882,-183144.34195332,0.000237,2]
[315409778,1709016636891,-500.0,0.00023727,2]
[315409779,1709016636900,-4350.99457148,0.00023743,2]
[315409780,1709016636910,-500.0,0.00023759,2]
[315409781,1709016636921,-150.0,0.0002376,2]
[315409782,1709016636930,-56.38642326,0.0002376,2]
[315409783,1709016636949,-249.62384749,0.00023,2]
[315409784,1709016636958,-93.61357674,0.0002376,2]
[315409785,1709016636968,-150.0,0.0002376,2]
[315409786,1709016636977,-150.0,0.0002376,2]
[315409787,1709016636986,-150.0,0.0002376,2]
[315409788,1709016636995,-150.0,0.0002376,2]
[315409789,1709016637005,-150.0,0.0002376,2]
[315409790,1709016637017,-150.0,0.0002376,2]
[315409791,1709016637026,-150.0,0.0002376,2]
[315409792,1709016637035,-150.0,0.0002376,2]
[315409793,1709016637044,-150.0,0.0002376,2]
[315409794,1709016637054,-150.0,0.0002376,2]
[315409795,1709016637063,-150.0,0.0002376,2]
[315409796,1709016637072,-150.0,0.0002376,2]
[315409797,1709016637082,-150.0,0.0002376,2]
[315409798,1709016637092,-150.0,0.0002376,2]
[315409799,1709016637103,-150.0,0.0002376,2]
[315409800,1709016637112,-150.0,0.0002376,2]
[315409801,1709016637122,-150.0,0.0002376,2]
[315409802,1709016637131,-150.0,0.0002376,2]
[315409803,1709016637141,-150.0,0.0002376,2]
[315409804,1709016637150,-150.0,0.0002376,2]
[315409805,1709016637159,-150.0,0.0002376,2]
[315409806,1709016637168,-150.0,0.0002376,2]
[315409807,1709016637179,-150.0,0.0002376,2]
[315409808,1709016637188,-150.0,0.0002376,2]
[315409809,1709016637197,-150.0,0.0002376,2]
[315409810,1709016637206,-150.0,0.0002376,2]
[315409811,1709016637216,-150.0,0.0002376,2]
[315409812,1709016637226,-150.0,0.0002376,2]
[315409813,1709016637235,-479.08,0.00023764,2]
[315409814,1709016637244,-153.35,0.00023764,2]
[315409815,1709016637254,-500.0,0.00023779,2]
[315409816,1709016637263,-45092.3884518,0.0002378,2]
[315409817,1709016637293,-885.4525,0.0002378,2]
[315409818,1709016637304,-938.959998,0.0002378,2]
[315409829,1709016638266,-187.82933966,0.00023,2]
[315409830,1709016638275,-249.62384749,0.00023,2]
[315409831,1709016638285,-249.62384749,0.00023,2]
[315409832,1709016638294,-132.47897738,0.00023,2]
[315409833,1709016638306,-117.14487011,0.00023,2]
[315409834,1709016638315,-249.62384749,0.00023,2]
[315409835,1709016638326,-249.62384749,0.00023,2]
[315409836,1709016638335,-249.62384749,0.00023,2]
[315409837,1709016638345,-249.62384749,0.00023,2]
[315409838,1709016638355,-249.62384749,0.00023,2]
[315409839,1709016638365,-249.62384749,0.00023,2]
[315409840,1709016638373,-249.62384749,0.00023,2]
[315409841,1709016638382,-249.62384749,0.00023,2]
[315409842,1709016638392,-249.62384749,0.00023,2]
[315409843,1709016638401,-249.62384749,0.00023,2]
[315409844,1709016638410,-249.62384749,0.00023,2]
[315409845,1709016638419,-765.29859178,0.000234,2]
[315409846,1709016638428,-34924.24030806,0.0002378,2]
[315409847,1709016638440,-8985.63768656,0.0002378,2]
[315409848,1709016640182,-2807.1,0.0002302,2]
[315409849,1709016640194,-14465.00514622,0.0002302,2]
[315409850,1709016640209,-1111.52838394,0.0002302,2]
[315409924,1709016640933,-850.49803836,0.0002302,2]
[315409926,1709016640946,-322.19,0.0002302,2]
[315410011,1709016641758,-4119.52294165,0.0002302,2]
[315410013,1709016641768,-42705.32105558,0.0002378,2]
[315410015,1709016641777,-500.0,0.00023791,2]
[315410017,1709016641787,-151.97,0.00023797,2]
[315410019,1709016641796,-166.13,0.00023797,2]
[315410021,1709016641806,-15624.43540871,0.00023798,2]
[315410023,1709016641823,-2418.0627088,0.00023798,2]
[315410025,1709016641832,-14880.50367861,0.00023798,2]
[315410028,1709016641845,-3161.99443883,0.00023798,2]
[315410030,1709016641854,-59.60556117,0.00023798,2]
[315410205,1709016643397,-17982.89255627,0.00023798,2]
[315410208,1709016643405,-10147.10744373,0.00023798,2]
[315410212,1709016643417,-2880.37143724,0.00023798,2]
[315410233,1709016643528,-5015.01923647,0.00023798,2]
[315410235,1709016643538,-9019.28404961,0.00023798,2]
[315410242,1709016643591,-5498.76360761,0.00023798,2]
[315410262,1709016643772,-3524.45046022,0.00023798,2]
[315410264,1709016643782,-1639.29314702,0.00023798,2]
[315410510,1709016650385,-1000.0,0.000232,2]
[315410511,1709016650395,-700.84266767,0.00023797,2]
[315410512,1709016650404,-112.29021445,0.00023797,2]
[315410513,1709016650416,-101.31100033,0.00023797,2]
[315410514,1709016650425,-11138.68027459,0.00023798,2]
[315410521,1709016681070,448.17630753,9e-05,2]
[315410522,1709016692685,325.4613785,0.0001,2]
[315410523,1709016849336,200.0,0.0001634,2]
[315410524,1709016862815,-202.0,0.00019244,2]
[315410525,1709016862844,-5798.0,0.0002,2]
[315410531,1709016887895,1181.46,0.0003,120]
[315410532,1709017069994,-90000.0,0.00024,30]
[315410533,1709017119860,-201665.62540226,0.00024,30]
[315410534,1709017119883,-269820.9537823,0.00024,30]
[315410535,1709017119906,-528513.42081544,0.00024,30]
[315410536,1709017178758,5000.0,0.0003,120]
[315410537,1709017205304,5200.68,0.0003,120]
[315410538,1709017427564,151.0,0.0002957,120]
[315410539,1709017530140,-155.00111981,0.00018047,2]
[315410540,1709017618093,-201.00780918,0.00017242,2]
[315410541,1709017630111,-12.5934056,0.00017242,2]
[315410542,1709017630134,-155.0,0.00017243,2]
[315410543,1709017630157,-203.0,0.00017244,2]
[315410544,1709017630179,-322.6911436,0.00018048,2]
[315410545,1709017630204,-767.06310534,0.00018049,2]
[315410546,1709017637110,-162.35372922,0.00018047,2]
[315410547,1709017638188,-202.93740823,0.00018047,2]
[315410548,1709017642099,-159.17324347,0.00018047,2]
[315410549,1709017642143,-545.03059363,0.00018047,2]
[315410550,1709017644141,-629.97405817,0.00018047,2]
[315410551,1709017649158,-10.93575954,0.00018047,2]
[315410552,1709017649179,-30.31018472,0.00018049,2]
[315410553,1709017649199,-323.54705824,0.0001805,2]
[315410554,1709017758053,151.0,0.00029685,120]
[315410570,1709017831517,-203.0,0.00017244,2]
[315410572,1709017831526,-979.379011,0.00017957,2]
[315410574,1709017831536,-300.0,0.00018048,2]
[315410576,1709017831546,-150.0,0.00018048,2]
[315410578,1709017831555,-649.6379686,0.00018049,2]
[315410579,1709017831565,-45155.4723633,0.00018049,2]
[315410580,1709017831574,-473.82623182,0.0001805,2]
[315410581,1709017831585,-152.7691788,0.00018144,2]
[315410582,1709017831595,-203.0,0.0001854,3]
[315410583,1709017831606,-1525.36,0.00018774,2]
[315410584,1709017831616,-155.0,0.00019045,2]
[315410585,1709017831626,-14921.75411969,0.00019046,5]
[315410586,1709017831636,-152.76917877,0.00019333,2]
[315410587,1709017831646,-180.0,0.00019691,2]